fUSD/lending_fUSD_20260329
["ID","MTS","AMOUNT","RATE_DAILY","PERIOD"]
[419060561,1774822029004,-10000.01,9.407e-05,2]
[419060562,1774822029107,-10000.01,9.407e-05,2]
[419060563,1774822029223,-10000.01,9.407e-05,2]
[419060564,1774822029399,-10000.01,9.407e-05,2]
[419060565,1774822037485,-805.24,8.863e-05,2]
[419060566,1774822037517,-760.0,8.876e-05,2]
[419060567,1774822037550,-850.87,9.002e-05,2]
[419060568,1774822037691,-167.79,9.002e-05,2]
[419060569,1774822037723,-1630.0,9.174e-05,2]
[419060570,1774822037850,-1560.0,9.208e-05,2]
[419060571,1774822037882,-600.0,9.226e-05,2]
[419060572,1774822058792,3000.0,9e-05,3]
[419060578,1774822105689,501.84,8.448e-05,2]
[419060579,1774822106228,178.17,9.219e-05,2]
[419060580,1774822106251,204.16,9.219e-05,2]
[419060581,1774822112486,440.30943356,9.406e-05,2]
[419060582,1774822112537,500.0,9.406e-05,2]
[419060583,1774822112587,359.17345323,9.406e-05,2]
[419060584,1774822115290,601.21235389,9.406e-05,2]
[419060585,1774822129173,201.69,8.675e-05,2]
[419060586,1774822129349,201.69,9.157e-05,2]
[419060587,1774822142317,150.0,9.406e-05,2]
[419060588,1774822147918,2341.77475932,7.945e-05,2]
[419060589,1774822147942,1272.04731068,7.945e-05,2]
[419060590,1774822153979,150.0,9.406e-05,2]
[419060591,1774822170209,1090.0,8.82e-05,2]
[419060592,1774822170412,2487.96268932,9.407e-05,2]
[419060593,1774822170436,5000.01,9.407e-05,2]
[419060594,1774822170459,5000.01,9.407e-05,2]
[419060595,1774822170482,5000.01,9.407e-05,2]
[419060596,1774822170505,5000.01,9.407e-05,2]
[419060597,1774822170528,4483.08886484,9.407e-05,2]
[419060598,1774822176079,516.92113516,9.407e-05,2]
[419060599,1774822176110,2434.92697933,9.407e-05,2]
[419060600,1774822183577,540.63437119,9.407e-05,2]
[419060601,1774822185803,176.77,0.00019996,120]
[419060602,1774822200802,150.0,9.406e-05,2]
[419060604,1774822206094,32312.39442551,9.5e-05,3]
[419060611,1774822232417,-612329.50479498,9.407e-05,2]
[419060612,1774822232428,-89384.3737283,9.407e-05,2]
[419060613,1774822232440,-252708.23771326,9.407e-05,2]
[419060614,1774822232451,-102982.59889394,9.407e-05,2]
[419060615,1774822232461,-131911.9123619,9.407e-05,2]
[419060616,1774822232487,-829.98709775,9.407e-05,2]
[419060617,1774822232603,1140.0,9.206e-05,2]
[419060618,1774822233135,734.44864948,9.388e-05,2]
[419060619,1774822233160,465.55135052,9.388e-05,2]
[419060620,1774822234008,224.32485354,9.407e-05,2]
[419060621,1774822237873,-321.57925,9.407e-05,2]
[419060622,1774822237885,-335.17077607,9.407e-05,2]
[419060623,1774822237897,-4893.40419783,9.407e-05,2]
[419060624,1774822237908,-1929.65037103,9.407e-05,2]
[419060625,1774822237920,-2479.96015593,9.407e-05,2]
[419060626,1774822237931,-3866.52337604,9.407e-05,2]
[419060627,1774822238223,-2353431.81241345,9.407e-05,2]
[419060628,1774822238233,-2500.0,9.407e-05,2]
[419060629,1774822238244,-250.0,9.413e-05,2]
[419060630,1774822238254,-780.0,9.419e-05,2]
[419060631,1774822238264,-5000.0,9.456e-05,2]
[419060632,1774822238274,-945.86,9.46e-05,2]
[419060633,1774822238284,-920.0,9.467e-05,2]
[419060634,1774822238295,-500.0,9.483e-05,2]
[419060635,1774822238305,-500.0,9.483e-05,2]
[419060636,1774822238315,-169.92418884,9.483e-05,2]
[419060637,1774822238325,-500.0,9.483e-05,2]
[419060638,1774822238337,-4130.80765112,9.486e-05,2]
[419060639,1774822238347,-418886.82690469,9.5e-05,3]
[419060640,1774822238357,-1002.75935616,9.504e-05,2]
[419060641,1774822238367,-4566.50840311,9.506e-05,2]
[419060642,1774822238378,-154.00708367,9.557e-05,2]
[419060643,1774822238389,-94739.83,9.557e-05,2]
[419060644,1774822238399,-8455.71,9.557e-05,2]
[419060646,1774822238410,-2997.56,9.557e-05,2]
[419060647,1774822238420,-354.69,9.557e-05,2]
[419060648,1774822238430,-9999.99,9.557e-05,2]
[419060649,1774822238439,-5686.33,9.557e-05,2]
[419060650,1774822238449,-2115.96,9.557e-05,2]
[419060651,1774822238460,-999.99,9.557e-05,2]
[419060654,1774822238470,-1842.25,9.557e-05,2]
[419060656,1774822238480,-1159.87,9.557e-05,2]
[419060658,1774822238490,-1050.0,9.563e-05,2]
[419060660,1774822238500,-253.0,9.57e-05,2]
[419060662,1774822238510,-339.0,9.594e-05,2]
[419060664,1774822238521,-150.99,9.6e-05,2]
[419060666,1774822238530,-9999.99,9.6e-05,2]
[419060668,1774822238541,-299.99,9.6e-05,2]
[419060670,1774822238550,-150.99,9.6e-05,2]
[419060672,1774822238561,-740.0,9.605e-05,2]
[419060674,1774822238571,-19048.3611,9.606e-05,2]
[419060677,1774822238581,-1000.0,9.606e-05,2]
[419060679,1774822238591,-277.0,9.613e-05,2]
[419060681,1774822238601,-710.78,9.615e-05,2]
[419060682,1774822238612,-1570.0,9.62e-05,2]
[419060685,1774822238622,-451.0,9.632e-05,2]
[419060686,1774822238633,-201.69,9.638e-05,2]
[419060689,1774822238643,-422.0,9.639e-05,2]
[419060691,1774822238653,-1554.09,9.656e-05,2]
[419060693,1774822238664,-379.0,9.659e-05,2]
[419060695,1774822238674,-1248.0,9.678e-05,2]
[419060697,1774822238683,-10000.0,9.686e-05,2]
[419060699,1774822238693,-500.0,9.686e-05,2]
[419060701,1774822238702,-1539.0,9.697e-05,2]
[419060703,1774822238717,-6100.0,9.7e-05,3]
[419060705,1774822238727,-343.0,9.716e-05,2]
[419060707,1774822238737,-1715.0,9.735e-05,2]
[419060709,1774822238747,-1484.0,9.755e-05,2]
[419060711,1774822238757,-274.0,9.774e-05,2]
[419060713,1774822238767,-1389.0,9.793e-05,2]
[419060715,1774822238777,-150.0,9.8e-05,2]
[419060717,1774822238787,-9100.0,9.8e-05,3]
[419060719,1774822238798,-1110.0,9.804e-05,2]
[419060721,1774822238808,-312.0,9.812e-05,2]
[419060723,1774822238819,-154.0,9.815e-05,2]
[419060726,1774822238829,-1144.0,9.831e-05,2]
[419060728,1774822238840,-1600.0,9.867e-05,2]
[419060730,1774822238850,-2750.6,9.9e-05,3]
[419060732,1774822238860,-2750.6,9.9e-05,3]
[419060734,1774822238870,-2750.6,9.9e-05,3]
[419060736,1774822238880,-2750.6,9.9e-05,3]
[419060738,1774822238891,-2750.6,9.9e-05,3]
[419060740,1774822238901,-2750.6,9.9e-05,3]
[419060742,1774822238911,-2750.6,9.9e-05,3]
[419060744,1774822238921,-2750.6,9.9e-05,3]
[419060746,1774822238931,-2750.6,9.9e-05,3]
[419060748,1774822238942,-12200.0,9.9e-05,3]
[419060750,1774822238952,-500.0,9.96e-05,2]
[419060752,1774822238963,-1820.0,9.982e-05,2]
[419060754,1774822238974,-536.50890521,0.0001,2]
[419060756,1774822238985,-1253.43984942,0.0001,2]
[419060758,1774822238995,-1314.16344403,0.0001,2]
[419060761,1774822239006,-1129.37591407,0.0001,2]
[419060763,1774822239017,-161.74358192,0.0001,2]
[419060765,1774822239026,-187.61815655,0.0001,2]
[419060767,1774822239036,-500.0,0.0001,2]
[419060769,1774822239047,-500.0,0.0001,2]
[419060771,1774822239058,-500.0,0.0001,2]
[419060773,1774822239069,-500.0,0.0001,2]
[419060775,1774822239079,-500.0,0.0001,2]
[419060777,1774822239090,-500.0,0.0001,2]
[419060779,1774822239100,-500.0,0.0001,2]
[419060781,1774822239110,-500.0,0.0001,2]
[419060783,1774822239120,-500.0,0.0001,2]
[419060785,1774822239130,-500.0,0.0001,2]
[419060788,1774822239140,-500.0,0.0001,2]
[419060789,1774822239151,-200.0,0.0001,2]
[419060792,1774822239161,-151.0,0.0001,2]
[419060794,1774822239171,-151.0,0.0001,2]
[419060796,1774822239181,-151.0,0.0001,2]
[419060798,1774822239192,-151.0,0.0001,2]
[419060800,1774822239202,-151.0,0.0001,2]
[419060802,1774822239213,-151.0,0.0001,2]
[419060804,1774822239224,-151.0,0.0001,2]
[419060806,1774822239234,-151.0,0.0001,2]
[419060807,1774822239245,-151.0,0.0001,2]
[419060808,1774822239255,-151.0,0.0001,2]
[419060809,1774822239266,-151.0,0.0001,2]
[419060810,1774822239277,-151.0,0.0001,2]
[419060811,1774822239288,-151.0,0.0001,2]
[419060812,1774822239298,-151.0,0.0001,2]
[419060813,1774822239308,-500.0,0.0001,2]
[419060814,1774822239319,-151.0,0.0001,2]
[419060815,1774822239330,-151.0,0.0001,2]
[419060816,1774822239340,-151.0,0.0001,2]
[419060817,1774822239350,-500.0,0.0001,2]
[419060818,1774822239361,-151.0,0.0001,2]
[419060819,1774822239371,-151.0,0.0001,2]
[419060820,1774822239381,-500.0,0.0001,2]
[419060821,1774822239391,-151.0,0.0001,2]
[419060822,1774822239401,-151.0,0.0001,2]
[419060823,1774822239411,-151.0,0.0001,2]
[419060824,1774822239421,-500.0,0.0001,2]
[419060825,1774822239432,-151.0,0.0001,2]
[419060826,1774822239442,-151.0,0.0001,2]
[419060827,1774822239452,-500.0,0.0001,2]
[419060828,1774822239463,-151.0,0.0001,2]
[419060829,1774822239473,-500.0,0.0001,2]
[419060830,1774822239483,-151.0,0.0001,2]
[419060831,1774822239493,-500.0,0.0001,2]
[419060832,1774822239503,-151.0,0.0001,2]
[419060833,1774822239513,-500.0,0.0001,2]
[419060834,1774822239523,-151.0,0.0001,2]
[419060835,1774822239533,-151.0,0.0001,2]
[419060836,1774822239543,-500.0,0.0001,2]
[419060837,1774822239553,-151.0,0.0001,2]
[419060838,1774822239564,-500.0,0.0001,2]
[419060839,1774822239574,-15200.0,0.0001,3]
[419060840,1774822239584,-151.0,0.0001,2]
[419060841,1774822239594,-500.0,0.0001,2]
[419060842,1774822239604,-1386.78395259,0.0001,2]
[419060843,1774822239614,-151.0,0.0001,2]
[419060844,1774822239625,-151.0,0.0001,2]
[419060845,1774822239636,-246.56828004,0.0001,2]
[419060846,1774822239646,-182.87105963,0.0001,2]
[419060847,1774822239656,-918.03,0.00010005,2]
[419060848,1774822239666,-439.55,0.00010017,2]
[419060849,1774822239676,-697.01734564,0.00010031,2]
[419060850,1774822239686,-501.58195524,0.00010031,2]
[419060851,1774822239696,-261.48805615,0.000101,2]
[419060852,1774822239707,-201.69,0.0001012,2]
[419060853,1774822239718,-1628.21,0.00010147,2]
[419060854,1774822239728,-1610.0,0.00010216,2]
[419060855,1774822239738,-625.07,0.00010228,2]
[419060856,1774822239748,-500.0,0.00010234,2]
[419060857,1774822239758,-1621.09,0.00010338,2]
[419060858,1774822239769,-255.0,0.00010347,2]
[419060859,1774822239779,-5000.0,0.00010348,2]
[419060860,1774822239789,-5000.0,0.00010348,2]
[419060861,1774822239800,-250.0,0.00010348,2]
[419060862,1774822239811,-5000.0,0.00010348,2]
[419060863,1774822239821,-250.0,0.00010348,2]
[419060864,1774822239832,-600.0,0.00010388,2]
[419060865,1774822239842,-795.39,0.0001043,2]
[419060866,1774822239853,-1600.0,0.00010452,2]
[419060867,1774822239863,-1044.09,0.00010474,2]
[419060868,1774822239873,-500.0,0.00010508,2]
[419060869,1774822239884,-200.0,0.00010548,2]
[419060870,1774822239894,-1438.09495884,0.00010548,2]
[419060871,1774822239912,-151.0,0.00010548,2]
[419060872,1774822239926,-201.69,0.00010602,2]
[419060873,1774822239937,-270.07601474,0.000107,2]
[419060874,1774822239947,-189.38,0.00010794,2]
[419060875,1774822239958,-285.45,0.0001091,2]
[419060876,1774822239968,-500.0,0.00010959,2]
[419060877,1774822239979,-150.0,0.00010959,2]
[419060878,1774822239990,-168.31887754,0.00010959,2]
[419060879,1774822240000,-3282.16832312,0.00011,2]
[419060880,1774822240011,-1758.88630873,0.00011,2]
[419060881,1774822240021,-192.492138,0.00011038,2]
[419060882,1774822240034,-201.69,0.00011084,2]
[419060883,1774822240045,-200.0,0.00011096,2]
[419060884,1774822240057,-1491.30447232,0.00011096,2]
[419060885,1774822240068,-267.40193029,0.00011096,2]
[419060886,1774822240079,-27308.02061139,0.00011099,2]
[419060887,1774822240089,-27308.02061134,0.00011099,2]
[419060888,1774822240099,-27308.02061134,0.00011099,2]
[419060889,1774822240109,-27308.02061134,0.00011099,2]
[419060890,1774822240119,-9606.5105148,0.00011199,2]
[419060891,1774822240129,-196.8705,0.000112,2]
[419060892,1774822240139,-150.0,0.00011233,2]
[419060893,1774822240149,-433.0,0.00011381,2]
[419060894,1774822240159,-27308.02061134,0.00011501,2]
[419060895,1774822240170,-201.69,0.00011566,2]
[419060896,1774822240180,-1600.0,0.00011613,2]
[419060897,1774822240190,-500.0,0.00011644,2]
[419060898,1774822240200,-200.0,0.00011644,2]
[419060899,1774822240210,-1546.48273779,0.00011644,2]
[419060900,1774822240221,-284.995285,0.00011784,2]
[419060901,1774822240231,-2502.924622,0.00011784,2]
[419060902,1774822240242,-3850.328691,0.00011784,2]
[419060903,1774822240252,-5537.068297,0.00011844,2]
[419060904,1774822240263,-536.34099,0.00011844,2]
[419060905,1774822240273,-15686.09150363,0.00012,7]
[419060906,1774822240283,-200.0,0.00012,2]
[419060907,1774822240293,-27308.02061134,0.00012025,2]
[419060908,1774822240304,-201.69,0.00012048,2]
[419060909,1774822240315,-500.0,0.00012082,2]
[419060910,1774822240325,-9606.5105148,0.00012139,2]
[419060911,1774822240335,-200.0,0.00012192,2]
[419060912,1774822240345,-1603.70259909,0.00012192,2]
[419060913,1774822240356,-890.8152,0.00012369,2]
[419060914,1774822240365,-3058.394528,0.00012369,2]
[419060915,1774822240377,-222.373603,0.00012369,2]
[419060916,1774822240386,-1438.64821,0.00012397,2]
[419060917,1774822240397,-250.0,0.0001243,2]
[419060918,1774822240407,-736.0,0.0001252,2]
[419060919,1774822240417,-201.69,0.0001253,2]
[419060920,1774822240428,-27308.02061134,0.00012548,2]
[419060921,1774822240437,-258.3867,0.000126,2]
[419060922,1774822240450,-246.56828002,0.00012603,2]
[419060923,1774822240460,-26971.09155416,0.00012604,2]
[419060924,1774822240471,-2951.84811449,0.00012604,2]
[419060925,1774822240482,-6628.0,0.00012733,5]
[419060926,1774822240493,-151.0,0.00012739,2]
[419060927,1774822240503,-200.0,0.0001274,2]
[419060928,1774822240514,-1663.03959526,0.0001274,2]
[419060929,1774822240524,-1000.0,0.00012751,2]
[419060930,1774822240534,-1600.0,0.00012775,2]
[419060931,1774822240544,-58217.26008247,0.00012999,2]
[419060932,1774822240554,-250.0,0.00013,2]
[419060933,1774822240567,-201.69,0.00013012,2]
[419060934,1774822240577,-27308.02061134,0.00013072,2]
[419060935,1774822240587,-9606.5105148,0.0001308,2]
[419060936,1774822240597,-189.38,0.00013254,2]
[419060937,1774822240607,-200.0,0.00013288,2]
[419060938,1774822240617,-1724.57206028,0.00013288,2]
[419060939,1774822240627,-156.86,0.00013333,2]
[419060940,1774822240639,-3240.0,0.00013425,2]
[419060941,1774822240648,-1000.0,0.000135,2]
[419060942,1774822240659,-27308.02061134,0.00013595,2]
[419060943,1774822240669,-959.8630956,0.00013611,2]
[419060944,1774822240679,-160.0,0.00013611,2]
[419060945,1774822240689,-160.0,0.00013611,2]
[419060946,1774822240699,-160.0,0.0001362,2]
[419060947,1774822240709,-500.0,0.00013644,2]
[419060948,1774822240719,-500.0,0.00013673,2]
[419060949,1774822240729,-500.0,0.00013673,2]
[419060950,1774822240739,-500.0,0.00013673,2]
[419060951,1774822240749,-500.0,0.00013698,2]
[419060952,1774822240759,-500.0,0.00013698,2]
[419060953,1774822240769,-500.0,0.00013698,2]
[419060954,1774822240780,-500.0,0.00013698,2]
[419060955,1774822240790,-500.0,0.00013698,2]
[419060956,1774822240800,-500.0,0.00013698,2]
[419060957,1774822240810,-500.0,0.00013698,2]
[419060958,1774822240821,-500.0,0.00013698,2]
[419060959,1774822240831,-500.0,0.00013698,2]
[419060960,1774822240842,-500.0,0.00013698,2]
[419060961,1774822240852,-500.0,0.00013698,2]
[419060962,1774822240862,-500.0,0.00013698,2]
[419060963,1774822240872,-500.0,0.00013698,2]
[419060964,1774822240882,-500.0,0.00013698,2]
[419060965,1774822240893,-500.0,0.00013698,2]
[419060966,1774822240903,-420.74775151,0.00013698,2]
[419060967,1774822240913,-500.0,0.00013698,2]
[419060968,1774822240923,-500.0,0.00013698,2]
[419060969,1774822240933,-500.0,0.00013698,2]
[419060970,1774822240943,-500.0,0.00013698,2]
[419060971,1774822240953,-500.0,0.00013698,2]
[419060972,1774822240964,-500.0,0.00013698,2]
[419060973,1774822240973,-500.0,0.00013698,2]
[419060974,1774822240984,-500.0,0.00013698,2]
[419060975,1774822240993,-500.0,0.00013698,2]
[419060976,1774822241003,-500.0,0.00013698,2]
[419060977,1774822241013,-500.0,0.00013698,2]
[419060978,1774822241023,-500.0,0.00013698,2]
[419060979,1774822241033,-500.0,0.00013698,2]
[419060980,1774822241043,-500.0,0.00013698,2]
[419060981,1774822241053,-500.0,0.00013698,2]
[419060982,1774822241063,-500.0,0.00013698,2]
[419060983,1774822241074,-500.0,0.00013698,2]
[419060984,1774822241084,-500.0,0.00013698,2]
[419060985,1774822241094,-500.0,0.00013698,2]
[419060986,1774822241104,-500.0,0.00013698,2]
[419060987,1774822241115,-500.0,0.00013698,2]
[419060988,1774822241125,-500.0,0.00013698,2]
[419060989,1774822241134,-500.0,0.00013698,2]
[419060990,1774822241144,-500.0,0.00013698,2]
[419060991,1774822241154,-415.88455514,0.00013698,2]
[419060992,1774822241165,-500.0,0.00013698,2]
[419060993,1774822241175,-500.0,0.00013698,2]
[419060994,1774822241186,-500.0,0.00013698,2]
[419060995,1774822241197,-500.0,0.00013698,2]
[419060996,1774822241207,-500.0,0.00013698,2]
[419060997,1774822241217,-500.0,0.00013698,2]
[419060998,1774822241227,-500.0,0.00013698,2]
[419060999,1774822241237,-500.0,0.00013698,2]
[419061001,1774822241247,-500.0,0.00013698,2]
[419061003,1774822241257,-500.0,0.00013698,2]
[419061005,1774822241267,-500.0,0.00013698,2]
[419061007,1774822241277,-500.0,0.00013698,2]
[419061009,1774822241287,-500.0,0.00013698,2]
[419061010,1774822241299,-316.88,0.00013698,2]
[419061011,1774822241309,-500.0,0.00013698,2]
[419061012,1774822241319,-500.0,0.00013698,2]
[419061013,1774822241329,-500.0,0.00013698,2]
[419061014,1774822241339,-500.0,0.00013698,2]
[419061015,1774822241350,-500.0,0.00013698,2]
[419061016,1774822241360,-500.0,0.00013698,2]
[419061017,1774822241369,-500.0,0.00013698,2]
[419061018,1774822241379,-500.0,0.00013698,2]
[419061019,1774822241389,-500.0,0.00013698,2]
[419061020,1774822241399,-500.0,0.00013698,2]
[419061021,1774822241409,-500.0,0.00013698,2]
[419061022,1774822241418,-500.0,0.00013698,2]
[419061023,1774822241428,-500.0,0.00013698,2]
[419061024,1774822241438,-500.0,0.00013698,2]
[419061025,1774822241449,-500.0,0.00013698,2]
[419061026,1774822241458,-500.0,0.00013698,2]
[419061027,1774822241468,-500.0,0.00013698,2]
[419061028,1774822241478,-500.0,0.00013698,2]
[419061029,1774822241488,-500.0,0.00013698,2]
[419061030,1774822241499,-332.17600438,0.00013698,2]
[419061031,1774822241510,-500.0,0.00013698,2]
[419061032,1774822241521,-500.0,0.00013698,2]
[419061033,1774822241531,-500.0,0.00013698,2]
[419061034,1774822241541,-500.0,0.00013698,2]
[419061035,1774822241553,-500.0,0.00013698,2]
[419061036,1774822241563,-500.0,0.00013698,2]
[419061037,1774822241572,-500.0,0.00013698,2]
[419061038,1774822241582,-500.0,0.00013698,2]
[419061039,1774822241592,-500.0,0.00013698,2]
[419061040,1774822241605,-500.0,0.00013698,2]
[419061041,1774822241615,-600.87743374,0.00013698,2]
[419061042,1774822241625,-500.0,0.00013698,2]
[419061044,1774822241635,-500.0,0.00013698,2]
[419061045,1774822241645,-500.0,0.00013698,2]
[419061046,1774822241655,-500.0,0.00013698,2]
[419061047,1774822241665,-500.0,0.00013698,2]
[419061048,1774822241675,-500.0,0.00013698,2]
[419061049,1774822241685,-500.0,0.00013698,2]
[419061050,1774822241695,-500.0,0.00013698,2]
[419061051,1774822241706,-500.0,0.00013698,2]
[419061052,1774822241716,-500.0,0.00013698,2]
[419061053,1774822241725,-500.0,0.00013698,2]
[419061054,1774822241735,-500.0,0.00013698,2]
[419061055,1774822241746,-500.0,0.00013698,2]
[419061056,1774822241755,-500.0,0.00013698,2]
[419061057,1774822241766,-500.0,0.00013698,2]
[419061058,1774822241778,-500.0,0.00013698,2]
[419061059,1774822241788,-381.48037858,0.00013698,2]
[419061060,1774822241799,-500.0,0.00013698,2]
[419061061,1774822241810,-500.0,0.00013698,2]
[419061062,1774822242206,-500.0,0.00013698,2]
[419061063,1774822242215,-500.0,0.00013698,2]
[419061064,1774822242225,-173.34235598,0.00013698,2]
[419061065,1774822242234,-500.0,0.00013698,2]
[419061066,1774822242243,-500.0,0.00013698,2]
[419061067,1774822242252,-500.0,0.00013698,2]
[419061068,1774822242261,-500.0,0.00013698,2]
[419061069,1774822242271,-500.0,0.00013698,2]
[419061070,1774822242281,-500.0,0.00013698,2]
[419061071,1774822242290,-500.0,0.00013698,2]
[419061072,1774822242299,-500.0,0.00013698,2]
[419061073,1774822242308,-500.0,0.00013698,2]
[419061074,1774822242318,-500.0,0.00013698,2]
[419061075,1774822242327,-500.0,0.00013698,2]
[419061076,1774822242336,-500.0,0.00013698,2]
[419061077,1774822242346,-500.0,0.00013698,2]
[419061078,1774822242355,-500.0,0.00013698,2]
[419061079,1774822242365,-500.0,0.00013698,2]
[419061080,1774822242375,-500.0,0.00013698,2]
[419061081,1774822242386,-500.0,0.00013698,2]
[419061082,1774822242395,-500.0,0.00013698,2]
[419061083,1774822242404,-500.0,0.00013698,2]
[419061084,1774822242413,-500.0,0.00013698,2]
[419061085,1774822242424,-500.0,0.00013698,2]
[419061086,1774822242434,-500.0,0.00013698,2]
[419061087,1774822242446,-500.0,0.00013698,2]
[419061088,1774822242456,-500.0,0.00013698,2]
[419061089,1774822242466,-500.0,0.00013698,2]
[419061090,1774822242477,-500.0,0.00013698,2]
[419061091,1774822242487,-500.0,0.00013698,2]
[419061092,1774822242497,-500.0,0.00013698,2]
[419061094,1774822242507,-500.0,0.00013698,2]
[419061096,1774822242517,-500.0,0.00013698,2]
[419061097,1774822242527,-315.9,0.00013698,2]
[419061098,1774822242537,-504.98451162,0.00013698,2]
[419061099,1774822242547,-500.0,0.00013698,2]
[419061100,1774822242557,-500.0,0.00013698,2]
[419061101,1774822242567,-500.0,0.00013698,2]
[419061102,1774822242577,-500.0,0.00013698,2]
[419061103,1774822242587,-500.0,0.00013698,2]
[419061104,1774822242596,-500.0,0.00013698,2]
[419061105,1774822242605,-500.0,0.00013698,2]
[419061106,1774822242615,-500.0,0.00013698,2]
[419061107,1774822242626,-500.0,0.00013698,2]
[419061109,1774822242635,-500.0,0.00013698,2]
[419061111,1774822242645,-500.0,0.00013698,2]
[419061113,1774822242655,-500.0,0.00013698,2]
[419061114,1774822242665,-500.0,0.00013698,2]
[419061115,1774822242676,-500.0,0.00013698,2]
[419061116,1774822242685,-500.0,0.00013698,2]
[419061119,1774822242695,-500.0,0.00013698,2]
[419061121,1774822242704,-500.0,0.00013698,2]
[419061123,1774822242714,-500.0,0.00013698,2]
[419061125,1774822242723,-626.57,0.00013698,2]
[419061127,1774822242733,-626.57,0.00013698,2]
[419061129,1774822242742,-626.57,0.00013698,2]
[419061131,1774822242751,-626.57,0.00013698,2]
[419061133,1774822242761,-626.57,0.00013698,2]
[419061135,1774822242770,-626.57,0.00013698,2]
[419061137,1774822242780,-626.57,0.00013698,2]
[419061138,1774822242789,-626.57,0.00013698,2]
[419061139,1774822242800,-626.57,0.00013698,2]
[419061140,1774822242809,-626.57,0.00013698,2]
[419061141,1774822242819,-626.57,0.00013698,2]
[419061143,1774822242829,-626.57,0.00013698,2]
[419061145,1774822242838,-626.57,0.00013698,2]
[419061147,1774822242847,-626.57,0.00013698,2]
[419061149,1774822242857,-626.57,0.00013698,2]
[419061150,1774822242866,-626.57,0.00013698,2]
[419061151,1774822242876,-626.57,0.00013698,2]
[419061152,1774822242885,-626.57,0.00013698,2]
[419061153,1774822242894,-626.57,0.00013698,2]
[419061154,1774822242904,-626.57,0.00013698,2]
[419061155,1774822242914,-626.57,0.00013698,2]
[419061156,1774822242925,-626.57,0.00013698,2]
[419061157,1774822242934,-626.57,0.00013698,2]
[419061158,1774822242943,-626.63,0.00013698,2]
[419061159,1774822242953,-272.52626615,0.00013698,2]
[419061160,1774822242962,-150.71545743,0.00013698,2]
[419061161,1774822242971,-500.0,0.00013698,2]
[419061162,1774822242981,-500.0,0.00013698,2]
[419061163,1774822242991,-500.0,0.00013698,2]
[419061164,1774822243000,-500.0,0.00013698,2]
[419061165,1774822243011,-500.0,0.00013698,2]
[419061166,1774822243020,-500.0,0.00013698,2]
[419061167,1774822243030,-500.0,0.00013698,2]
[419061168,1774822243040,-500.0,0.00013698,2]
[419061169,1774822243050,-500.0,0.00013698,2]
[419061170,1774822243061,-500.0,0.00013698,2]
[419061171,1774822243071,-500.0,0.00013698,2]
[419061172,1774822243082,-500.0,0.00013698,2]
[419061173,1774822243093,-500.0,0.00013698,2]
[419061174,1774822243103,-551.92950635,0.00013698,2]
[419061175,1774822243113,-500.0,0.00013698,2]
[419061176,1774822243123,-500.0,0.00013698,2]
[419061177,1774822243133,-500.0,0.00013698,2]
[419061178,1774822243144,-500.0,0.00013698,2]
[419061179,1774822243154,-500.0,0.00013698,2]